[Event "AUT Bundesliga 2022-23"]
[Site "Jenbach"]
[Date "2022.11.05"]
[Round "3.10"]
[White "Hess, Max"]
[Black "Kilgus, Georg"]
[Result "0-1"]
[ECO "C03"]
[WhiteElo "2361"]
[BlackElo "2397"]
[Annotator "TA"]
[PlyCount "102"]
[EventDate "2022.11.03"]
[EventType "team-tourn"]
[EventCountry "AUT"]
[SourceTitle "playchess.com"]
[Source "ChessBase"]
[SourceQuality "1"]
[TimeControl "40/5400+30:1800+30"]

{[%evp 11,102,8,19,16,14,0,0,0,6,0,62,63,83,83,78,83,101,104,94,-119,-111,-123,-104,-140,0,0,0,0,0,-39,-23,-35,-47,-212,-211,-220,-215,-207,-163,-161,-153,-146,-34,-20,-20,-26,0,0,0,-193,-191,-199,-178,-343,-139,-412,-403,-488,-476,-29977,-29978,-29978,-29979,-29981,-29982,-29982,-361,-29983,-287,-178,0,-29983,-29984,-29983,-29974,-29974,-29975,-29975,-29976,-29976,-29975,-29969,-29970,-29989,-29988,-29988,-29988,-29988,-29982,-29990,-29991,-29991,-29992]} 1. e4 {[%emt 0:00:02]} e6 {[%emt 0:00:09]} 2. d4 {[%emt 0:00:05]} d5 {[%emt 0:00:02]} 3. Nd2 {[%emt 0:00:05][%cal Bb1d2,Bd2f1,Bf1g3][%mdl 32]} Be7 {[%emt 0:00:41]} 4. Ngf3 {[%emt 0:00:06]} Nf6 {[%emt 0:00:30]} 5. e5 {[%emt 0:00:04]} Nfd7 {[%emt 0:00:02]} 6. Bd3 {[%emt 0:00:09]} c5 {[%emt 0:00:28]} 7. c3 {[%emt 0:00:05] C03: French Tarrasch: Unusual Black 3rd moves.} b6 {[%emt 0:00:03]} 8. Nf1 {[%emt 0:00:18]} Ba6 {[%emt 0:01:57]} 9. Bxa6 {[%emt 0:00:08] The position is equal.} Nxa6 {[%emt 0:00:04]} 10. Ng3 {[%emt 0:00:04]} h5 {[%emt 0:20:23]} (10... O-O $11) 11. h4 $14 {[%emt 0:02:13] [#]} c4 $146 {[%emt 0:04:25]} ({Predecessor:} 11... Qc7 12. Qe2 Nab8 13. Bg5 Nc6 14. Bxe7 Nxe7 15. O-O Rc8 16. Ng5 g6 17. Qf3 Nf5 18. Nxf5 gxf5 {1-0 (63) Thorsteinsson,S (2095)-Simonsen,H (2179) Vestmanna 2011}) 12. Ng5 {[%emt 0:08:32]} g6 {[%emt 0:01:37]} 13. Qf3 {[%emt 0:04:54][%csl Gg5][%cal Rf3f7]} Rf8 {[%emt 0:14:08] [#]} 14. Nxh5 $1 {[%emt 0:29:26][%mdl 512]} gxh5 {[%emt 0:00:21]} 15. Nxe6 {[%emt 0:00:16]} fxe6 $17 {[%emt 0:05:24]} 16. Qxh5+ {[%emt 0:00:05]} Rf7 {[%emt 0:00:08][%cal Oa6c5] White must now prevent ...Nac5!} 17. Rh3 {[%emt 0:00:03] [#]} Bf8 {[%emt 0:14:54]} (17... Nac5 $1 $17 {[%cal Rc5d3] aiming for ...Nd3+.} 18. dxc5 (18. Rf3 Bf6 $17) (18. Kf1 Ne4) 18... Qc7) 18. Rf3 $11 {[%emt 0:04:10][%csl Gf3][%cal Rh5f7]} Nxe5 {[%emt 0:00:09]} 19. dxe5 {[%emt 0:00:05][%csl Gf3][%cal Rh5f7]} Qd7 {[%emt 0:05:32]} 20. Be3 {[%emt 0:04:53]} Bg7 {[%emt 0:00:44]} 21. O-O-O $1 {[%emt 0:05:51] Strongly threatening Rd4.} Kf8 $1 {[%emt 0:02:00]} 22. Bh6 $2 {[%emt 0:17:30]} ({White should play} 22. Rg3 $1 $15) 22... Rxf3 $19 {[%emt 0:03:02]} 23. gxf3 {[%emt 0:00:30]} Qf7 {[%emt 0:02:31]} 24. Qg5 {[%emt 0:08:39] And now Rg1 would win.} Bxh6 {[%emt 0:01:34]} 25. Qxh6+ {[%emt 0:00:03]} Ke7 $1 {[%emt 0:00:02]} 26. Rxd5 {[%emt 0:00:29]} exd5 {[%emt 0:05:59]} (26... Rg8 $1 $17 {[%cal Rg8g6]} 27. Rd4 Qf5) 27. Qd6+ $15 {[%emt 0:00:04]} Ke8 {[%emt 0:00:01]} 28. Qc6+ {[%emt 0:00:45]} Kf8 {[%emt 0:00:02]} (28... Qd7 $5 {[%cal Rd7c6]} 29. Qxa8+ Kf7 $15) 29. Qxa8+ {[%emt 0:00:39]} Kg7 {[%emt 0:00:02] Hoping for ...Nc5.} 30. b4 {[%emt 0:02:35] Prevents Nc5.} (30. e6 $1 $11 Nc7 31. Qxa7 (31. exf7 $2 Nxa8 32. f4 Kxf7 $19) (31. Qh8+ $2 Kxh8 32. exf7 Kg7 $19) 31... Nxe6 32. Qxb6) 30... cxb3 $1 $19 {[%emt 0:00:54]} 31. axb3 {[%emt 0:00:03]} Nc5 {[%emt 0:00:03]} 32. Kc2 $2 {[%emt 0:02:59]} (32. e6 {was necessary.} Qxe6 33. Qxa7+ Kh6 34. Kd2) 32... a5 {[%emt 0:02:30]} ({Stronger than} 32... Qxf3 33. Qxa7+ Kh8 34. Qb8+ Kh7 35. Qc7+ Kh8 36. Qb8+ Kh7 37. Qc7+ Kg8 38. Qb8+ Kh7 $11) (32... d4 $19 {has better winning chances.} 33. c4 Qf5+ 34. Kb2 Qxe5 35. Qxa7+ Kf8 36. Qa8+ Ke7 37. Qa7+ Nd7 38. Qa3+ Ke6) 33. Qd8 $2 {[%emt 0:02:14][%mdl 8192]} (33. Qc8 $17) 33... Qxf3 {[%emt 0:02:26]} 34. Qc7+ {[%emt 0:02:26] [#]} Qf7 $1 {[%emt 0:00:14]} 35. Qxb6 {[%emt 0:01:32]} (35. Qxf7+ $19 Kxf7 36. b4 axb4 37. cxb4) 35... Qxf2+ {[%emt 0:00:04]} 36. Kb1 {[%emt 0:00:07]} Qe1+ {[%emt 0:03:46]} 37. Ka2 {[%emt 0:01:34]} Qd2+ {[%emt 0:00:21]} 38. Ka3 {[%emt 0:00:51]} Qc1+ {[%emt 0:00:08]} 39. Ka2 {[%emt 0:00:02]} Qc2+ $2 {[%emt 0:01:30]} (39... Ne4 {mates} 40. Qa7+ Kg6 41. Qa6+ Kf5 42. Qd3 Ke6 43. Qa6+ Kf5 44. Qd3 Ke6 45. Qa6+ Kf7 46. Qb7+ Kg6 47. Qa6+ Kf5) 40. Ka3 {[%emt 0:00:00]} Qc1+ $2 {[%emt 0:00:00]} ({Not} 40... Qxc3 41. Qf6+ Kh7 42. Qf7+ Kh8 43. Qf8+ Kh7 44. Qf7+ Kh8 45. Qf8+ Kh7 46. Qf7+ $11) (40... Ne4 $19 41. Qxa5 Qc1+ 42. Ka4 Qa1+ 43. Kb5 Nxc3+ 44. Kb6 Qxa5+ 45. Kxa5 Kg6) 41. Ka2 {[%emt 0:00:10] [#]} Ne4 {[%emt 0:02:53][%cal Re4c3] Black mates.} 42. Qb7+ {[%emt 0:08:08]} Kh6 {[%emt 0:00:40][%cal Re4c3]} 43. Qa6+ {[%emt 0:02:55]} Kh5 {[%emt 0:00:48][%cal Re4c3]} 44. Qe2+ {[%emt 0:00:12]} Kxh4 {[%emt 0:00:04][%cal Re4c3]} 45. Qh2+ {[%emt 0:00:30]} Kg4 {[%emt 0:00:28][%cal Re4c3]} 46. Qe2+ {[%emt 0:01:50]} Kg3 {[%emt 0:00:58][%cal Re4c3]} 47. Qd3+ {[%emt 0:04:56]} Kf4 {[%emt 0:00:22]} 48. Qd4 {[%emt 0:00:13]} Kf5 {[%emt 0:00:46]} 49. Qd3 {[%emt 0:00:16]} Kxe5 {[%emt 0:02:12]} 50. Qd4+ {[%emt 0:00:09]} Ke6 {[%emt 0:00:02]} 51. Qb6+ {[%emt 0:00:08]} Kf5 {[%emt 0:00:04] Weighted Error Value: White=0.51/Black=0.28 (precise)} 0-1

[Event "AUT Bundesliga 2022-23"]
[Site "Jenbach"]
[Date "2022.11.05"]
[Round "3.11"]
[White "Singer, Christoph"]
[Black "Brunello, Marina"]
[Result "0-1"]
[ECO "D04"]
[WhiteElo "2309"]
[BlackElo "2343"]
[Annotator "TA"]
[PlyCount "124"]
[EventDate "2022.11.03"]
[EventType "team-tourn"]
[EventCountry "AUT"]
[SourceTitle "playchess.com"]
[Source "ChessBase"]
[SourceQuality "1"]
[TimeControl "40/5400+30:1800+30"]

{[%evp 9,124,8,8,11,24,25,20,17,26,26,35,23,20,11,33,0,40,35,31,39,62,62,64,55,65,63,68,60,64,60,69,60,90,90,99,96,93,92,87,78,88,93,149,154,220,218,197,126,113,135,146,67,227,183,188,185,177,179,183,183,179,179,181,161,180,171,187,175,197,193,219,213,212,195,189,0,212,0,188,164,181,184,231,227,215,169,260,234,240,203,231,211,211,206,206,191,179,189,216,206,205,155,156,157,169,-18,-16,-15,0,-887,-879,-857,0,-579,-564,-29993,-29993]} 1. Nf3 {[%emt 0:00:06]} d5 {[%emt 0:00:17]} 2. d4 {[%emt 0:00:20]} Nf6 {[%emt 0:00:44]} 3. e3 {[%emt 0:00:42]} Bf5 {[%emt 0:01:20]} 4. Bd3 {[%emt 0:07:05]} Bxd3 {[%emt 0:03:37]} 5. Qxd3 {[%emt 0:00:42]} c6 {[%emt 0:00:36]} 6. Nbd2 {[%emt 0:01:31] D04: Colle System.} g6 {[%emt 0:06:36]} 7. O-O {[%emt 0:05:13]} Bg7 {[%emt 0:00:05]} 8. e4 {[%emt 0:04:09] The position is equal.} dxe4 {[%emt 0:00:31]} 9. Nxe4 {[%emt 0:00:03]} Nbd7 {[%emt 0:00:11]} 10. Re1 {[%emt 0:09:24]} O-O {[%emt 0:00:27]} 11. Bg5 {[%emt 0:10:46] [#]} h6 $146 {[%emt 0:05:37] And now ...Nxe4 would win.} ({Predecessor:} 11... Re8 12. Rad1 Qb6 13. b3 a5 14. c4 a4 15. h4 axb3 16. axb3 Nxe4 17. Rxe4 Nf6 {½-½ (36) Fomina,T (2220)-Saunina,L (2290) Arvier 2006}) 12. Nxf6+ {[%emt 0:10:54]} Nxf6 {[%emt 0:00:08]} 13. Bf4 {[%emt 0:03:03]} Nd5 {[%emt 0:08:54]} 14. Be5 {[%emt 0:03:53]} Qd7 {[%emt 0:02:49]} 15. c4 {[%emt 0:04:17]} Nf6 {[%emt 0:04:46]} 16. Rad1 {[%emt 0:00:18]} Rad8 {[%emt 0:03:04]} 17. h3 {[%emt 0:01:24]} h5 {[%emt 0:02:24]} 18. Qe3 {[%emt 0:08:32]} Rfe8 {[%emt 0:08:15]} 19. b3 {[%emt 0:01:11]} a6 {[%emt 0:01:25]} 20. Qf4 {[%emt 0:05:58]} Qc8 {[%emt 0:05:55]} 21. Bc7 {[%emt 0:03:54][%cal Be5c7,Bc7b6,Bb6c5,Bc5a3][%mdl 32]} Rd7 {[%emt 0:00:03]} 22. Bb6 {[%emt 0:00:32]} Rd6 {[%emt 0:00:11]} 23. Bc5 {[%emt 0:02:25]} Re6 {[%emt 0:01:34]} 24. Ne5 {[%emt 0:01:58]} Rf8 {[%emt 0:01:55]} 25. Ba3 {[%emt 0:02:56]} Ne8 {[%emt 0:06:57]} (25... Qb8 $142) 26. d5 $1 $36 {[%emt 0:03:58][%mdl 2048] White is on the roll.} cxd5 {[%emt 0:01:57]} (26... Rf6 $16 27. Qc1 Nd6 28. dxc6 Re6) 27. cxd5 $18 {[%emt 0:01:43]} Rf6 {[%emt 0:00:29]} 28. Qd2 {[%emt 0:01:15]} (28. Qa4 $1 $18) 28... Nd6 $16 {[%emt 0:00:32]} 29. Nc4 {[%emt 0:00:22]} Qd7 {[%emt 0:05:24] [#]} 30. Qe2 {[%emt 0:01:23]} (30. Re2 $1 $16) 30... Qf5 $2 {[%emt 0:01:17]} (30... Nxc4 $14 31. Qxc4 (31. bxc4 Re8 $14) 31... Re8) 31. Bb2 {[%emt 0:00:25]} Rd8 {[%emt 0:01:53]} 32. Bxf6 {[%emt 0:00:09]} Bxf6 {[%emt 0:00:04]} 33. Nxd6 {[%emt 0:00:11]} Rxd6 {[%emt 0:00:34]} 34. Qd3 {[%emt 0:01:09]} Qd7 {[%emt 0:00:32]} 35. Qf3 {[%emt 0:00:15]} h4 {[%emt 0:00:38]} 36. Qg4 {[%emt 0:00:26]} Qb5 {[%emt 0:00:39]} 37. Qc4 {[%emt 0:00:38]} Qb6 {[%emt 0:00:32]} 38. Rd3 {[%emt 0:00:36]} Kg7 {[%emt 0:00:57]} 39. Rc1 {[%emt 0:00:33]} Qa5 {[%emt 0:00:49]} 40. a4 {[%emt 0:00:00]} Bb2 {[%emt 0:00:00]} 41. Rcd1 {[%emt 0:10:24]} Bf6 {[%emt 0:01:21]} 42. Rc1 {[%emt 0:00:10]} Bb2 {[%emt 0:00:03]} 43. Rcd1 {[%emt 0:06:11]} Bf6 $1 {[%emt 0:00:10]} 44. Qc2 {[%emt 0:00:08]} Be5 {[%emt 0:02:46]} 45. Qd2 {[%emt 0:00:52]} Qd8 {[%emt 0:00:08]} (45... Qxd2 $142 46. R1xd2 (46. R3xd2 Rd8 $16) 46... g5) 46. Qb4 $18 {[%emt 0:01:03]} g5 {[%emt 0:02:33]} 47. Qe4 {[%emt 0:02:08]} ({Not} 47. Qxb7 $2 Rb6 48. Qc6 (48. Qa7 $2 Bb8 $19) 48... Rxc6 49. dxc6 Qa5 $19) 47... Bf6 {[%emt 0:00:08]} (47... f6 $142 48. Re3 Qc8) 48. g3 {[%emt 0:00:55]} hxg3 {[%emt 0:06:24]} 49. fxg3 {[%emt 0:00:02]} Rb6 {[%emt 0:01:37][%cal Bd6b6,Bb6b4,Bb4e4,Be4e5,Be5f5][%mdl 32]} 50. Rc1 {[%emt 0:02:38]} Qd6 {[%emt 0:00:24]} 51. Kg2 {[%emt 0:01:14][%cal Bg1g2,Bg2f3,Bf3g4][%mdl 32]} Qa3 {[%emt 0:02:48]} 52. Qc4 {[%emt 0:01:56]} Rb4 {[%emt 0:00:03]} 53. Qc2 {[%emt 0:00:38]} Re4 {[%emt 0:00:05]} 54. Kf3 {[%emt 0:06:01]} Re5 {[%emt 0:00:57]} 55. Rcd1 {[%emt 0:01:01]} Qd6 {[%emt 0:00:39]} 56. Qc4 {[%emt 0:01:34]} Qb6 {[%emt 0:00:06]} 57. b4 $2 {[%emt 0:01:45]} (57. Qg4 $18) 57... Rf5+ $1 $11 {[%emt 0:00:36][%mdl 1024] Black has compensation.} 58. Kg4 $1 {[%emt 0:00:01] Black must now prevent Qc5.} Qf2 {[%emt 0:01:16][%cal Ob7b5] Threatens to win with ...b5!} 59. Qe4 $2 {[%emt 0:01:20][%mdl 8192] [#]} (59. a5 $11) 59... Re5 $1 $19 {[%emt 0:00:50]} 60. Qf3 {[%emt 0:00:02]} Qb2 $2 {[%emt 0:01:27]} (60... Qc2 $19 {( -> ...Qc8+)} 61. Qf1 Qc8+ 62. Kf3 Rf5+ 63. Ke2 Rxf1 64. Rxf1 Qxh3) 61. Rb3 $2 {[%emt 0:00:53][%mdl 8192]} (61. d6 $11 Qc2 62. h4 (62. d7 $2 Qc4+ $19) 62... exd6 63. Rxd6 (63. Kh3 Re2 $11) 63... Re4+ 64. Kh5 Rxh4+ 65. gxh4 Qh7+ 66. Kg4 Qxh4+ 67. Kf5 Qh7+ 68. Kg4 Qh4+ 69. Kf5 Qh7+ 70. Kg4 Qh4+) 61... Qc2 {[%emt 0:00:06]} 62. d6 {[%emt 0:02:15]} Qc4+ {[%emt 0:01:51] Weighted Error Value: White=0.50/Black=0.21 (precise)} 0-1

[Event "AUT Bundesliga 2022-23"]
[Site "Jenbach"]
[Date "2022.11.05"]
[Round "3.12"]
[White "Kruckenhauser, Arthur"]
[Black "Salvenmoser, Stefan"]
[Result "1-0"]
[ECO "B50"]
[WhiteElo "2327"]
[BlackElo "2295"]
[Annotator "TA"]
[PlyCount "47"]
[EventDate "2022.11.03"]
[EventType "team-tourn"]
[EventCountry "AUT"]
[SourceTitle "playchess.com"]
[Source "ChessBase"]
[SourceQuality "1"]
[TimeControl "40/5400+30:1800+30"]

{[%evp 9,47,16,18,0,13,0,0,0,0,0,4,11,29,28,25,25,31,29,36,40,43,41,74,54,59,5,37,-41,22,25,61,49,47,42,115,99,600,604,588,572]} 1. e4 {[%emt 0:00:04]} c5 {[%emt 0:00:11]} 2. Nf3 {[%emt 0:00:04]} d6 {[%emt 0:00:10]} 3. Nc3 {[%emt 0:00:15]} Nf6 {[%emt 0:01:16]} 4. d4 {[%emt 0:00:05]} cxd4 {[%emt 0:00:06]} 5. Qxd4 {[%emt 0:00:03]} Nc6 {[%emt 0:02:10]} 6. Qd3 {[%emt 0:00:04] B53: Sicilian: 2...d6: Lines with Qxd4.} g6 {[%emt 0:06:25]} 7. Nd5 $1 {[%emt 0:02:47][%mdl 4] outshines the older 7.Be2.} Bg7 {[%emt 0:02:08]} 8. c3 {[%emt 0:00:04] The position is equal.} O-O {[%emt 0:05:53]} 9. Bg5 {[%emt 0:00:04] [#]} Re8 $146 {[%emt 0:04:04]} ({Predecessor:} 9... Nxd5 10. exd5 Ne5 11. Nxe5 Bxe5 12. Qd2 Bd7 13. a4 Rc8 14. Be2 Re8 15. Be3 e6 16. dxe6 Rxe6 {1-0 (29) Xiong,J (2690)-Dominguez Perez,L (2754) Saint Louis 2022}) 10. Be2 {[%emt 0:02:49]} Rb8 {[%emt 0:24:49]} 11. a4 {[%emt 0:05:58]} a6 {[%emt 0:01:04]} 12. O-O {[%emt 0:09:56]} Nxd5 {[%emt 0:11:30]} 13. exd5 {[%emt 0:02:30]} Ne5 {[%emt 0:00:06]} 14. Nxe5 {[%emt 0:00:18]} Bxe5 {[%emt 0:00:16]} 15. a5 {[%emt 0:01:13]} Qd7 {[%emt 0:04:07]} 16. Bd1 {[%emt 0:03:47] [#] Ba4 is the strong threat. White is more active.} Qc7 {[%emt 0:03:25]} 17. Re1 {[%emt 0:02:30]} (17. Be3 $14) 17... Bd7 {[%emt 0:01:04]} 18. Kh1 {[%emt 0:11:43]} (18. Be3 $14) 18... Bg7 {[%emt 0:05:27]} (18... b6 $15) 19. Be3 $11 {[%emt 0:05:28]} ({Not} 19. Bxe7 $2 Bf5 20. Qe3 Bf8 $19) ({Wrong is} 19. Rxe7 $2 Rxe7 20. Bxe7 Re8 $19) 19... Rbc8 {[%emt 0:01:56]} 20. Bb6 {[%emt 0:01:19]} Qc4 {[%emt 0:00:21]} 21. Qd2 {[%emt 0:17:02]} e6 {[%emt 0:02:13] [#]} ({Black should try} 21... Be5 $14) 22. Bf3 $1 $16 {[%emt 0:00:46]} e5 $2 {[%emt 0:03:04][%mdl 8192]} (22... Qb5 $16) 23. Re4 $18 {[%emt 0:00:15]} Qb3 {[%emt 0:02:24]} 24. Rb4 {[%emt 0:00:10] Weighted Error Value: White=0.15 (very precise) /Black=0.48} 1-0

[Event "AUT Bundesliga 2022-23"]
[Site "Jenbach"]
[Date "2022.11.05"]
[Round "3.13"]
[White "Georgiadis, Nico"]
[Black "Dragnev, Valentin"]
[Result "0-1"]
[ECO "B11"]
[WhiteElo "2577"]
[BlackElo "2544"]
[Annotator "ChessBase"]
[PlyCount "86"]
[EventDate "2022.11.03"]
[EventType "team-tourn"]
[EventCountry "AUT"]
[SourceTitle "playchess.com"]
[Source "ChessBase"]
[SourceQuality "1"]
[TimeControl "40/5400+30:1800+30"]

1. e4 {[%emt 0:00:03]} c6 {[%emt 0:00:10]} 2. Nf3 {[%emt 0:00:17]} d5 {[%emt 0:00:05]} 3. Nc3 {[%emt 0:00:06]} Bg4 {[%emt 0:00:10]} 4. h3 {[%emt 0:00:14]} Bxf3 {[%emt 0:00:04]} 5. Qxf3 {[%emt 0:00:07]} e6 {[%emt 0:00:06]} 6. d3 {[%emt 0:00:22]} Nd7 {[%emt 0:01:02]} 7. Be2 {[%emt 0:00:30]} Bd6 {[%emt 0:01:09]} 8. d4 {[%emt 0:01:14]} Ne7 {[%emt 0:00:41]} 9. O-O {[%emt 0:00:23]} O-O {[%emt 0:00:18]} 10. Bd3 {[%emt 0:00:58]} Qb6 {[%emt 0:01:14]} 11. exd5 {[%emt 0:20:24]} cxd5 {[%emt 0:02:33]} 12. Ne2 {[%emt 0:16:44]} e5 {[%emt 0:15:15]} 13. dxe5 {[%emt 0:00:08]} Nxe5 {[%emt 0:00:10]} 14. Qg3 {[%emt 0:04:04]} Nc4 {[%emt 0:05:21]} 15. Qh4 {[%emt 0:09:10]} Ng6 {[%emt 0:01:59]} 16. Qh5 {[%emt 0:01:18]} Be5 {[%emt 0:02:03]} 17. c3 {[%emt 0:02:42]} Rfe8 {[%emt 0:01:07]} 18. b3 {[%emt 0:03:16]} Nd6 {[%emt 0:01:07]} 19. Be3 {[%emt 0:00:59]} Qa5 {[%emt 0:01:03]} 20. b4 {[%emt 0:06:27]} Qa3 {[%emt 0:08:28]} 21. Rac1 {[%emt 0:01:35]} Ne4 {[%emt 0:08:49]} 22. Rfd1 {[%emt 0:10:46]} Rad8 {[%emt 0:14:16]} 23. Qf3 {[%emt 0:08:17]} h6 {[%emt 0:14:21]} 24. Rc2 {[%emt 0:07:12]} Qa4 {[%emt 0:01:31]} 25. Nd4 {[%emt 0:00:38]} a6 {[%emt 0:03:46]} 26. g3 {[%emt 0:00:52]} Bf6 {[%emt 0:01:07]} 27. Re1 {[%emt 0:01:31]} Nxc3 {[%emt 0:05:30]} 28. Bxg6 {[%emt 0:00:36]} fxg6 {[%emt 0:00:04]} 29. Rxc3 {[%emt 0:01:01]} Bxd4 {[%emt 0:00:09]} 30. Rc7 {[%emt 0:00:23]} Qxb4 {[%emt 0:04:02]} 31. Rd1 {[%emt 0:01:45]} Be5 {[%emt 0:02:35]} 32. Qf7+ {[%emt 0:00:13]} Kh7 {[%emt 0:00:02]} 33. Rxb7 {[%emt 0:00:26]} Qe4 {[%emt 0:00:38]} 34. Re7 {[%emt 0:01:27]} Rxe7 {[%emt 0:03:53]} 35. Qxe7 {[%emt 0:00:04]} Rb8 {[%emt 0:00:43]} 36. Qe6 {[%emt 0:01:22]} d4 {[%emt 0:01:10]} 37. Bd2 {[%emt 0:00:46]} Qe2 {[%emt 0:00:56]} 38. Re1 {[%emt 0:00:16]} Qxd2 {[%emt 0:00:16]} 39. Qxe5 {[%emt 0:00:02]} Rb2 {[%emt 0:00:34]} 40. Rf1 {[%emt 0:00:00]} Rxa2 {[%emt 0:00:00]} 41. h4 {[%emt 0:01:06]} Ra5 {[%emt 0:04:23]} 42. Qe6 {[%emt 0:00:40]} d3 {[%emt 0:02:53]} 43. Qb6 {[%emt 0:00:35]} Qc3 {[%emt 0:01:42]} 0-1

[Event "AUT Bundesliga 2022-23"]
[Site "Jenbach"]
[Date "2022.11.05"]
[Round "3.14"]
[White "Banusz, Tamas"]
[Black "Koelle, Tobias"]
[Result "1-0"]
[ECO "D02"]
[WhiteElo "2622"]
[BlackElo "2439"]
[Annotator "ChessBase"]
[PlyCount "71"]
[EventDate "2022.11.03"]
[EventType "team-tourn"]
[EventCountry "AUT"]
[SourceTitle "playchess.com"]
[Source "ChessBase"]
[SourceQuality "1"]
[TimeControl "40/5400+30:1800+30"]

1. Nf3 {[%emt 0:00:02]} d5 {[%emt 0:00:09]} 2. d4 {[%emt 0:00:05]} Nf6 {[%emt 0:00:06]} 3. c4 {[%emt 0:00:04]} e6 {[%emt 0:00:13]} 4. g3 {[%emt 0:00:04]} Bb4+ {[%emt 0:00:04]} 5. Bd2 {[%emt 0:00:07]} Be7 {[%emt 0:00:15]} 6. Bg2 {[%emt 0:00:07]} c6 {[%emt 0:00:07]} 7. Qc2 {[%emt 0:00:20]} Nbd7 {[%emt 0:00:09]} 8. Bf4 {[%emt 0:00:45]} O-O {[%emt 0:02:04]} 9. O-O {[%emt 0:01:31]} b6 {[%emt 0:00:21]} 10. Nbd2 {[%emt 0:00:12]} Ba6 {[%emt 0:10:05]} 11. Rac1 {[%emt 0:00:33]} Nh5 {[%emt 0:09:22]} 12. Be3 {[%emt 0:00:18]} Nhf6 {[%emt 0:02:37]} 13. Bg5 {[%emt 0:00:33]} Rc8 {[%emt 0:05:03]} 14. Rfd1 {[%emt 0:03:27]} c5 {[%emt 0:10:49]} 15. Qa4 {[%emt 0:09:24]} Bb7 {[%emt 0:06:14]} 16. Ne5 {[%emt 0:12:50]} Nxe5 {[%emt 0:07:34]} 17. dxe5 {[%emt 0:00:18]} Nd7 {[%emt 0:04:45]} 18. Bxe7 {[%emt 0:00:42]} Qxe7 {[%emt 0:00:03]} 19. f4 {[%emt 0:02:03]} a6 {[%emt 0:03:27]} 20. cxd5 {[%emt 0:18:34]} exd5 {[%emt 0:00:54]} 21. Nf1 {[%emt 0:08:22]} b5 {[%emt 0:06:49]} 22. Qa3 {[%emt 0:03:46]} Nb6 {[%emt 0:05:01]} 23. Ne3 {[%emt 0:00:41]} Nc4 {[%emt 0:02:27]} 24. Nxc4 {[%emt 0:00:22]} dxc4 {[%emt 0:00:05]} 25. Bxb7 {[%emt 0:00:30]} Qxb7 {[%emt 0:00:02]} 26. Rd6 {[%emt 0:00:38]} a5 {[%emt 0:03:43]} 27. Qe3 {[%emt 0:01:46]} Rfe8 {[%emt 0:02:01]} 28. Rcd1 {[%emt 0:02:39]} b4 {[%emt 0:02:03]} 29. Rd7 {[%emt 0:04:24]} Qb6 {[%emt 0:05:27]} 30. R1d6 {[%emt 0:03:35]} Rc6 {[%emt 0:00:08]} 31. e6 {[%emt 0:01:54]} f6 {[%emt 0:04:15]} 32. Rxg7+ {[%emt 0:01:09]} Kxg7 {[%emt 0:00:05]} 33. Rd7+ {[%emt 0:00:04]} Kg6 {[%emt 0:00:49]} 34. f5+ {[%emt 0:00:34]} Kxf5 {[%emt 0:00:12]} 35. Qf3+ {[%emt 0:00:18]} Ke5 {[%emt 0:00:37]} 36. Qd5# {[%emt 0:00:06]} 1-0

[Event "AUT Bundesliga 2022-23"]
[Site "Jenbach"]
[Date "2022.11.05"]
[Round "3.15"]
[White "Krassowizkij, Jaroslaw"]
[Black "Blohberger, Felix"]
[Result "1/2-1/2"]
[ECO "D71"]
[WhiteElo "2439"]
[BlackElo "2493"]
[Annotator "ChessBase"]
[PlyCount "109"]
[EventDate "2022.11.03"]
[EventType "team-tourn"]
[EventCountry "AUT"]
[SourceTitle "playchess.com"]
[Source "ChessBase"]
[SourceQuality "1"]
[TimeControl "40/5400+30:1800+30"]

1. d4 {[%emt 0:00:03]} Nf6 {[%emt 0:00:06]} 2. c4 {[%emt 0:00:05]} g6 {[%emt 0:00:02]} 3. g3 {[%emt 0:00:07]} Bg7 {[%emt 0:00:24]} 4. Bg2 {[%emt 0:00:06]} c5 {[%emt 0:00:18]} 5. Nf3 {[%emt 0:01:09]} Qa5+ {[%emt 0:01:16]} 6. Qd2 {[%emt 0:14:27]} Qxd2+ {[%emt 0:00:42]} 7. Nbxd2 {[%emt 0:00:13]} Na6 {[%emt 0:01:51]} 8. Nb3 {[%emt 0:04:04]} O-O {[%emt 0:07:15]} 9. O-O {[%emt 0:07:56]} Ne4 {[%emt 0:08:23]} 10. Ng5 {[%emt 0:07:13]} Nd6 {[%emt 0:02:43]} 11. Nxc5 {[%emt 0:01:09]} Nxc5 {[%emt 0:01:28]} 12. dxc5 {[%emt 0:00:05]} Nxc4 {[%emt 0:00:04]} 13. Rb1 {[%emt 0:00:48]} h6 {[%emt 0:02:00]} 14. b3 {[%emt 0:08:12]} Ne5 {[%emt 0:02:59]} 15. Nf3 {[%emt 0:21:35]} Nc6 {[%emt 0:02:49]} 16. Bb2 {[%emt 0:00:06]} Rb8 {[%emt 0:06:19]} 17. Rfd1 {[%emt 0:02:39]} b6 {[%emt 0:03:03]} 18. Bxg7 {[%emt 0:00:02]} Kxg7 {[%emt 0:00:08]} 19. Rbc1 {[%emt 0:00:08]} Rd8 {[%emt 0:12:22]} 20. Nd4 {[%emt 0:03:21]} Nxd4 {[%emt 0:01:43]} 21. Rxd4 {[%emt 0:01:54]} Ba6 {[%emt 0:04:18]} 22. Bf3 {[%emt 0:06:15]} Bb7 {[%emt 0:05:03]} 23. cxb6 {[%emt 0:04:50]} Bxf3 {[%emt 0:01:26]} 24. bxa7 {[%emt 0:03:49]} Ra8 {[%emt 0:00:15]} 25. exf3 {[%emt 0:00:04]} Rxa7 {[%emt 0:00:05]} 26. a4 {[%emt 0:03:06]} Rb8 {[%emt 0:01:58]} 27. Rc3 {[%emt 0:00:08]} Rab7 {[%emt 0:05:33]} 28. Rdd3 {[%emt 0:00:04]} e6 {[%emt 0:00:16]} 29. Kf1 {[%emt 0:01:44]} d5 {[%emt 0:00:06]} 30. Ke2 {[%emt 0:00:18]} Rb4 {[%emt 0:01:43]} 31. Kd1 {[%emt 0:04:54]} d4 {[%emt 0:01:52]} 32. Rc4 {[%emt 0:00:12]} Rxb3 {[%emt 0:00:34]} 33. Rxb3 {[%emt 0:00:30]} Rxb3 {[%emt 0:00:08]} 34. Rxd4 {[%emt 0:00:12]} Rxf3 {[%emt 0:00:11]} 35. Rf4 {[%emt 0:00:29]} Ra3 {[%emt 0:00:21]} 36. Kc2 {[%emt 0:00:28]} g5 {[%emt 0:00:18]} 37. Kb2 {[%emt 0:00:34]} Rd3 {[%emt 0:00:22]} 38. Rc4 {[%emt 0:00:09]} Rf3 {[%emt 0:01:53]} 39. a5 {[%emt 0:04:08]} Rxf2+ {[%emt 0:00:11]} 40. Kb3 {[%emt 0:00:00]} Rxh2 {[%emt 0:00:00]} 41. Rd4 {[%emt 0:14:51]} Rh1 {[%emt 0:05:33]} 42. Kb2 {[%emt 0:07:03]} Re1 {[%emt 0:02:23]} 43. a6 {[%emt 0:00:49]} Re5 {[%emt 0:00:09]} 44. Kb3 {[%emt 0:01:35]} Rc5 {[%emt 0:02:53]} 45. Kb4 {[%emt 0:00:54]} Rc8 {[%emt 0:00:26]} 46. Kb5 {[%emt 0:01:27]} e5 {[%emt 0:04:04]} 47. Ra4 {[%emt 0:00:13]} f5 {[%emt 0:04:57]} 48. a7 {[%emt 0:00:06]} Ra8 {[%emt 0:00:21]} 49. Kc4 {[%emt 0:00:29]} f4 {[%emt 0:00:48]} 50. gxf4 {[%emt 0:01:42]} exf4 {[%emt 0:00:23]} 51. Kd3 {[%emt 0:01:40]} Kg6 {[%emt 0:00:59]} 52. Ke4 {[%emt 0:00:12]} Kf7 {[%emt 0:04:22]} 53. Ra6 {[%emt 0:02:12]} Kg7 {[%emt 0:01:20]} 54. Kf3 {[%emt 0:02:55]} h5 {[%emt 0:01:46]} 55. Ra5 {[%emt 0:00:14]} 1/2-1/2